[Event "Early-Titled-Tuesday-Blitz-April-23-2024"]
[Site "Chess.com"]
[Date "2024.04.23"]
[Round "2"]
[White "emeli_chess"]
[Black "abelmat"]
[Result "1-0"]
[WhiteElo "2467"]
[BlackElo "2050"]
[TimeControl "180+1"]
[EndTime "8:18:44 PDT"]
[Termination "emeli_chess won on time"]

1. d4 {[%clk 0:03:00.9]} 1... d5 {[%clk 0:02:59]} 2. c4 {[%clk 0:03:00.9]} 2...
e6 {[%clk 0:02:59.2]} 3. Nc3 {[%clk 0:03:01.1]} 3... Nf6 {[%clk 0:02:59.6]} 4.
cxd5 {[%clk 0:03:01.2]} 4... exd5 {[%clk 0:02:59.6]} 5. Bg5 {[%clk 0:03:00.7]}
5... c6 {[%clk 0:02:58.6]} 6. Qc2 {[%clk 0:03:00.4]} 6... Be7 {[%clk 0:02:57.3]}
7. e3 {[%clk 0:03:00.4]} 7... O-O {[%clk 0:02:57.3]} 8. Bd3 {[%clk 0:03:00.6]}
8... Nbd7 {[%clk 0:02:57.3]} 9. Nf3 {[%clk 0:02:59.8]} 9... a5 {[%clk
0:02:57.1]} 10. O-O {[%clk 0:02:58.4]} 10... Re8 {[%clk 0:02:57.2]} 11. h3
{[%clk 0:02:57.2]} 11... Nf8 {[%clk 0:02:57.1]} 12. Ne5 {[%clk 0:02:56.3]} 12...
Be6 {[%clk 0:02:53]} 13. f4 {[%clk 0:02:55.4]} 13... c5 {[%clk 0:02:42.7]} 14.
Qf2 {[%clk 0:02:52.4]} 14... Rc8 {[%clk 0:02:28.2]} 15. Bb5 {[%clk 0:02:40.6]}
15... Bd7 {[%clk 0:02:22.1]} 16. a4 {[%clk 0:02:38.1]} 16... cxd4 {[%clk
0:02:17.7]} 17. exd4 {[%clk 0:02:37.6]} 17... Bxb5 {[%clk 0:02:11.6]} 18. Bxf6
{[%clk 0:02:05.4]} 18... Bxf1 {[%clk 0:01:53.6]} 19. Bxe7 {[%clk 0:02:04.3]}
19... Rxe7 {[%clk 0:01:39]} 20. Rxf1 {[%clk 0:02:02.8]} 20... Ng6 {[%clk
0:01:27.1]} 21. Qf3 {[%clk 0:01:40]} 21... Nxe5 {[%clk 0:00:50.2]} 22. fxe5
{[%clk 0:01:39.6]} 22... Rd7 {[%clk 0:00:32.8]} 23. Qg4 {[%clk 0:01:25.6]} 23...
Rc6 {[%clk 0:00:20.4]} 24. Nb5 {[%clk 0:01:16.6]} 24... Rg6 {[%clk 0:00:18.6]}
25. Qf3 {[%clk 0:01:15.4]} 25... h6 {[%clk 0:00:17.3]} 26. Nd6 {[%clk
0:01:15.3]} 26... Qe7 {[%clk 0:00:07.1]} 27. Qxd5 {[%clk 0:01:09.8]} 27... Rdxd6
{[%clk 0:00:04.6]} 28. exd6 {[%clk 0:01:06.5]} 28... Rxd6 {[%clk 0:00:04.9]} 29.
Qxa5 {[%clk 0:00:50.2]} 29... Rxd4 {[%clk 0:00:03.8]} 30. Qc3 {[%clk 0:00:44.6]}
30... Rd8 {[%clk 0:00:02.9]} 31. Re1 {[%clk 0:00:41.6]} 31... Qd7 {[%clk
0:00:01.8]} 32. a5 {[%clk 0:00:38.8]} 32... Qd4+ {[%clk 0:00:02.2]} 33. Qxd4
{[%clk 0:00:39.1]} 33... Rxd4 {[%clk 0:00:03]} 34. b3 {[%clk 0:00:30.6]} 34...
Rb4 {[%clk 0:00:03.9]} 35. Re3 {[%clk 0:00:29.2]} 35... Kf8 {[%clk 0:00:04]} 36.
Kf2 {[%clk 0:00:27.2]} 36... Rb5 {[%clk 0:00:04]} 37. Rc3 {[%clk 0:00:26.2]}
37... Rxa5 {[%clk 0:00:03.9]} 38. Rc8+ {[%clk 0:00:26.3]} 38... Ke7 {[%clk
0:00:04.1]} 39. Rc7+ {[%clk 0:00:26.7]} 39... Kf6 {[%clk 0:00:04.1]} 40. Rxb7
{[%clk 0:00:26.9]} 40... Ra2+ {[%clk 0:00:04.4]} 41. Kf3 {[%clk 0:00:26.6]}
41... Rb2 {[%clk 0:00:05.3]} 42. Rb5 {[%clk 0:00:25.1]} 42... Ke6 {[%clk
0:00:05.3]} 43. g4 {[%clk 0:00:24.5]} 43... g6 {[%clk 0:00:05.1]} 44. h4 {[%clk
0:00:24.3]} 44... Rb1 {[%clk 0:00:04.2]} 45. h5 {[%clk 0:00:23.7]} 45... gxh5
{[%clk 0:00:03.4]} 46. gxh5 {[%clk 0:00:23.7]} 46... Rh1 {[%clk 0:00:03]} 47.
Kg2 {[%clk 0:00:21.9]} 47... Rb1 {[%clk 0:00:02.5]} 48. Kg3 {[%clk 0:00:21.9]}
48... Kf6 {[%clk 0:00:02.9]} 49. Kg4 {[%clk 0:00:21.3]} 49... Rg1+ {[%clk
0:00:02.3]} 50. Kf4 {[%clk 0:00:21.6]} 50... Rf1+ {[%clk 0:00:02.2]} 51. Ke4
{[%clk 0:00:21.9]} 51... Rc1 {[%clk 0:00:01.8]} 52. Kd4 {[%clk 0:00:20.2]} 52...
Rh1 {[%clk 0:00:01]} 53. Kc4 {[%clk 0:00:19]} 1-0

[Event "Early-Titled-Tuesday-Blitz-April-23-2024"]
[Site "Chess.com"]
[Date "2024.04.23"]
[Round "2"]
[White "artin10862"]
[Black "MKlose11"]
[Result "1-0"]
[WhiteElo "2930"]
[BlackElo "2622"]
[TimeControl "180+1"]
[EndTime "8:18:45 PDT"]
[Termination "artin10862 won on time"]

1. d4 {[%clk 0:03:00.9]} 1... Nf6 {[%clk 0:02:58.4]} 2. Bg5 {[%clk 0:02:59.1]}
2... c5 {[%clk 0:02:56.9]} 3. e3 {[%clk 0:02:52.9]} 3... b6 {[%clk 0:02:55]} 4.
Bxf6 {[%clk 0:02:37.2]} 4... gxf6 {[%clk 0:02:53]} 5. dxc5 {[%clk 0:02:30.2]}
5... bxc5 {[%clk 0:02:52.9]} 6. Qd5 {[%clk 0:02:30]} 6... Qa5+ {[%clk
0:02:30.7]} 7. Nc3 {[%clk 0:02:24.2]} 7... Nc6 {[%clk 0:02:30.6]} 8. Bb5 {[%clk
0:02:23.9]} 8... e6 {[%clk 0:02:13.7]} 9. Qf3 {[%clk 0:02:22.8]} 9... Bb7 {[%clk
0:01:56.6]} 10. O-O-O {[%clk 0:02:09.5]} 10... f5 {[%clk 0:01:44.7]} 11. Qh5
{[%clk 0:01:54.2]} 11... Bg7 {[%clk 0:01:38.2]} 12. Nge2 {[%clk 0:01:54.2]}
12... a6 {[%clk 0:01:36.1]} 13. Ba4 {[%clk 0:01:53.8]} 13... d5 {[%clk
0:01:26.5]} 14. g4 {[%clk 0:01:30.4]} 14... fxg4 {[%clk 0:01:14]} 15. Rhg1
{[%clk 0:01:17.1]} 15... O-O-O {[%clk 0:01:01.4]} 16. Qxf7 {[%clk 0:01:16.2]}
16... Bxc3 {[%clk 0:00:44.3]} 17. Qxe6+ {[%clk 0:01:12.5]} 17... Kb8 {[%clk
0:00:44.5]} 18. Nxc3 {[%clk 0:01:06.8]} 18... d4 {[%clk 0:00:44.8]} 19. Bxc6
{[%clk 0:00:50.8]} 19... dxc3 {[%clk 0:00:43.1]} 20. Qb3 {[%clk 0:00:45.6]}
20... cxb2+ {[%clk 0:00:42.1]} 21. Kxb2 {[%clk 0:00:45.1]} 21... Qc7 {[%clk
0:00:27.7]} 22. Rxd8+ {[%clk 0:00:42.7]} 22... Rxd8 {[%clk 0:00:26.5]} 23. Qxb7+
{[%clk 0:00:43.4]} 23... Qxb7+ {[%clk 0:00:27.3]} 24. Bxb7 {[%clk 0:00:44.3]}
24... Kxb7 {[%clk 0:00:27.3]} 25. Rxg4 {[%clk 0:00:45.2]} 25... Rd2 {[%clk
0:00:25.1]} 26. Rf4 {[%clk 0:00:44.4]} 26... Kc6 {[%clk 0:00:23.9]} 27. Kc3
{[%clk 0:00:43.5]} 27... Rd1 {[%clk 0:00:22.8]} 28. Rf6+ {[%clk 0:00:43.7]}
28... Kb5 {[%clk 0:00:22.4]} 29. h4 {[%clk 0:00:42.3]} 29... Rh1 {[%clk
0:00:20.1]} 30. Rf4 {[%clk 0:00:41.9]} 30... Ra1 {[%clk 0:00:19.6]} 31. a4+
{[%clk 0:00:42]} 31... Ka5 {[%clk 0:00:18.1]} 32. Kd3 {[%clk 0:00:42.1]} 32...
Rd1+ {[%clk 0:00:16.7]} 33. Ke2 {[%clk 0:00:42.1]} 33... Rg1 {[%clk 0:00:16.4]}
34. Rc4 {[%clk 0:00:42.5]} 34... Kb6 {[%clk 0:00:16.4]} 35. Kf3 {[%clk
0:00:42.3]} 35... Kc6 {[%clk 0:00:16.2]} 36. Rg4 {[%clk 0:00:41.9]} 36... Rc1
{[%clk 0:00:15.4]} 37. Rc4 {[%clk 0:00:41.3]} 37... Kd5 {[%clk 0:00:15]} 38. Rc3
{[%clk 0:00:41.4]} 38... Ra1 {[%clk 0:00:15]} 39. Rd3+ {[%clk 0:00:39.2]} 39...
Ke5 {[%clk 0:00:15.3]} 40. e4 {[%clk 0:00:38.3]} 40... c4 {[%clk 0:00:06]} 41.
Rd5+ {[%clk 0:00:38.2]} 41... Ke6 {[%clk 0:00:06.5]} 42. a5 {[%clk 0:00:38.2]}
42... Ra2 {[%clk 0:00:05.9]} 43. Rc5 {[%clk 0:00:38.4]} 43... Rxc2 {[%clk
0:00:05.6]} 44. Rc6+ {[%clk 0:00:39]} 44... Ke5 {[%clk 0:00:05.8]} 45. Rc5+
{[%clk 0:00:39.1]} 45... Ke6 {[%clk 0:00:05.9]} 46. Ke3 {[%clk 0:00:39]} 46...
Rc3+ {[%clk 0:00:05.8]} 47. Kd4 {[%clk 0:00:37.3]} 47... Rh3 {[%clk 0:00:05.2]}
48. Rxc4 {[%clk 0:00:32.3]} 48... Rxh4 {[%clk 0:00:05.1]} 49. Rc6+ {[%clk
0:00:32.7]} 49... Kd7 {[%clk 0:00:05.7]} 50. Rxa6 {[%clk 0:00:33]} 50... Rh2
{[%clk 0:00:06]} 51. f4 {[%clk 0:00:33.1]} 51... h6 {[%clk 0:00:06.5]} 52. f5
{[%clk 0:00:33.1]} 52... h5 {[%clk 0:00:07]} 53. f6 {[%clk 0:00:32.6]} 53... h4
{[%clk 0:00:07]} 54. Ke5 {[%clk 0:00:32]} 54... h3 {[%clk 0:00:06.9]} 55. Ra7+
{[%clk 0:00:32.6]} 55... Kd8 {[%clk 0:00:05.4]} 56. Rh7 {[%clk 0:00:33.5]} 56...
Ra2 {[%clk 0:00:03.4]} 57. Kd6 {[%clk 0:00:32.2]} 57... Kc8 {[%clk 0:00:01.4]}
58. Rh8+ {[%clk 0:00:30.4]} 58... Kb7 {[%clk 0:00:01.5]} 59. Rxh3 {[%clk
0:00:31.3]} 59... Rxa5 {[%clk 0:00:02]} 60. f7 {[%clk 0:00:28.1]} 60... Ra8
{[%clk 0:00:02.9]} 61. e5 {[%clk 0:00:28.3]} 61... Kb6 {[%clk 0:00:03.1]} 62. e6
{[%clk 0:00:28.7]} 62... Kb5 {[%clk 0:00:04]} 63. e7 {[%clk 0:00:28.7]} 1-0

[Event "Early-Titled-Tuesday-Blitz-April-23-2024"]
[Site "Chess.com"]
[Date "2024.04.23"]
[Round "2"]
[White "tomesao"]
[Black "Aradhya2000"]
[Result "0-1"]
[WhiteElo "2514"]
[BlackElo "2851"]
[TimeControl "180+1"]
[EndTime "8:18:46 PDT"]
[Termination "Aradhya2000 won by resignation"]

1. Nf3 {[%clk 0:03:00.9]} 1... d5 {[%clk 0:02:58.3]} 2. c4 {[%clk 0:03:00.8]}
2... d4 {[%clk 0:02:58.2]} 3. b4 {[%clk 0:03:00.9]} 3... c5 {[%clk 0:02:54.8]}
4. Bb2 {[%clk 0:02:59.3]} 4... Nf6 {[%clk 0:02:51.5]} 5. e3 {[%clk 0:02:54.9]}
5... dxe3 {[%clk 0:02:50.6]} 6. fxe3 {[%clk 0:02:54.8]} 6... cxb4 {[%clk
0:02:51.3]} 7. d4 {[%clk 0:02:54]} 7... e6 {[%clk 0:02:49.5]} 8. Bd3 {[%clk
0:02:53]} 8... Be7 {[%clk 0:02:49.6]} 9. O-O {[%clk 0:02:52.8]} 9... O-O {[%clk
0:02:50.3]} 10. e4 {[%clk 0:02:50.9]} 10... Nc6 {[%clk 0:02:09.1]} 11. e5 {[%clk
0:02:48.3]} 11... Ne8 {[%clk 0:02:09]} 12. Qe2 {[%clk 0:02:43.4]} 12... g6
{[%clk 0:02:05.9]} 13. Nbd2 {[%clk 0:02:27.1]} 13... Ng7 {[%clk 0:02:05.7]} 14.
Ne4 {[%clk 0:02:24.3]} 14... Nf5 {[%clk 0:02:05.8]} 15. Qf2 {[%clk 0:02:23.6]}
15... h5 {[%clk 0:01:39.2]} 16. Rad1 {[%clk 0:02:19.5]} 16... Qb6 {[%clk
0:01:30.2]} 17. c5 {[%clk 0:02:15.9]} 17... Qa5 {[%clk 0:01:27]} 18. Bc1 {[%clk
0:02:05.8]} 18... b6 {[%clk 0:01:23.4]} 19. cxb6 {[%clk 0:01:46.2]} 19... Qxb6
{[%clk 0:01:22.8]} 20. Bb1 {[%clk 0:01:20.8]} 20... Ba6 {[%clk 0:01:15.7]} 21.
Rfe1 {[%clk 0:01:19.3]} 21... Rad8 {[%clk 0:01:15.4]} 22. Nf6+ {[%clk
0:01:01.6]} 22... Bxf6 {[%clk 0:01:15]} 23. exf6 {[%clk 0:01:02.5]} 23... Ncxd4
{[%clk 0:01:14.6]} 24. Nxd4 {[%clk 0:01:00.6]} 24... Rxd4 {[%clk 0:01:13]} 25.
Bxf5 {[%clk 0:00:48.4]} 25... Rxd1 {[%clk 0:01:12.2]} 26. Rxd1 {[%clk
0:00:49.3]} 26... exf5 {[%clk 0:01:07.4]} 27. Be3 {[%clk 0:00:29.1]} 27... Qxf6
{[%clk 0:01:07]} 28. Bd4 {[%clk 0:00:29.3]} 28... Qe6 {[%clk 0:01:06.9]} 29. Re1
{[%clk 0:00:27.2]} 29... Qc6 {[%clk 0:01:02.3]} 30. Qf4 {[%clk 0:00:19]} 30...
Re8 {[%clk 0:00:59.2]} 31. Rxe8+ {[%clk 0:00:16.9]} 31... Qxe8 {[%clk
0:00:59.2]} 32. h3 {[%clk 0:00:16.3]} 32... Kh7 {[%clk 0:00:47.9]} 33. Bb2
{[%clk 0:00:11.8]} 33... Qe1+ {[%clk 0:00:37.9]} 34. Kh2 {[%clk 0:00:11.4]}
34... h4 {[%clk 0:00:38.5]} 35. Be5 {[%clk 0:00:06.1]} 35... Qg3+ {[%clk
0:00:27.5]} 36. Qxg3 {[%clk 0:00:06.1]} 36... hxg3+ {[%clk 0:00:28.4]} 37. Kxg3
{[%clk 0:00:06.5]} 37... Bc4 {[%clk 0:00:29]} 38. Bd4 {[%clk 0:00:03.7]} 38...
a5 {[%clk 0:00:26.9]} 39. Bb6 {[%clk 0:00:03.8]} 39... a4 {[%clk 0:00:26.7]} 40.
Bc5 {[%clk 0:00:04.1]} 40... b3 {[%clk 0:00:25.1]} 41. axb3 {[%clk 0:00:04.5]}
41... axb3 {[%clk 0:00:25.3]} 42. Bd4 {[%clk 0:00:04.9]} 42... g5 {[%clk
0:00:24.9]} 43. Kf2 {[%clk 0:00:04.9]} 43... Kg6 {[%clk 0:00:24.8]} 44. g3
{[%clk 0:00:05.4]} 44... f6 {[%clk 0:00:22.1]} 45. Kg2 {[%clk 0:00:04.2]} 45...
Bd5+ {[%clk 0:00:21.3]} 46. Kf2 {[%clk 0:00:04.5]} 46... f4 {[%clk 0:00:21.3]}
47. gxf4 {[%clk 0:00:04.5]} 47... gxf4 {[%clk 0:00:22.2]} 48. Bc3 {[%clk
0:00:04.6]} 48... f5 {[%clk 0:00:22.6]} 49. Be5 {[%clk 0:00:04.5]} 49... Kg5
{[%clk 0:00:22.5]} 50. Bc3 {[%clk 0:00:03.9]} 50... Kh4 {[%clk 0:00:22.5]} 51.
Kf1 {[%clk 0:00:03.7]} 51... Kg3 {[%clk 0:00:21.5]} 52. h4 {[%clk 0:00:03.3]}
52... Bc4+ {[%clk 0:00:21.3]} 53. Kg1 {[%clk 0:00:03.4]} 53... f3 {[%clk
0:00:20.7]} 54. Be1+ {[%clk 0:00:02.8]} 54... Kh3 {[%clk 0:00:19.5]} 55. Bc3
{[%clk 0:00:02.3]} 55... Kxh4 {[%clk 0:00:17.5]} 56. Kf2 {[%clk 0:00:02.1]}
56... Kg4 {[%clk 0:00:18.1]} 57. Be5 {[%clk 0:00:02.1]} 57... Bd5 {[%clk
0:00:16.7]} 58. Bc3 {[%clk 0:00:02.4]} 58... Kf4 {[%clk 0:00:16.9]} 59. Bb2
{[%clk 0:00:02.9]} 59... Ke4 {[%clk 0:00:17.3]} 0-1

[Event "Early-Titled-Tuesday-Blitz-April-23-2024"]
[Site "Chess.com"]
[Date "2024.04.23"]
[Round "2"]
[White "Alenzer"]
[Black "alex1531"]
[Result "0-1"]
[WhiteElo "2221"]
[BlackElo "2504"]
[TimeControl "180+1"]
[EndTime "8:18:47 PDT"]
[Termination "alex1531 won by resignation"]

1. e4 {[%clk 0:02:43.2]} 1... c5 {[%clk 0:02:45.7]} 2. Nf3 {[%clk 0:02:38.6]}
2... e6 {[%clk 0:02:45.3]} 3. d4 {[%clk 0:02:29.6]} 3... cxd4 {[%clk 0:02:45.2]}
4. Nxd4 {[%clk 0:02:28.9]} 4... a6 {[%clk 0:02:45.4]} 5. Bd3 {[%clk 0:02:25.4]}
5... Nc6 {[%clk 0:02:31.9]} 6. Nxc6 {[%clk 0:02:23.9]} 6... dxc6 {[%clk
0:02:32]} 7. O-O {[%clk 0:02:13.1]} 7... e5 {[%clk 0:02:25.7]} 8. Be3 {[%clk
0:02:08.4]} 8... Be6 {[%clk 0:02:13.5]} 9. Nc3 {[%clk 0:01:56.5]} 9... b5 {[%clk
0:01:39.2]} 10. Kh1 {[%clk 0:01:54.7]} 10... Nf6 {[%clk 0:01:36.5]} 11. f4
{[%clk 0:01:53.8]} 11... exf4 {[%clk 0:01:36.6]} 12. Bxf4 {[%clk 0:01:53.6]}
12... Be7 {[%clk 0:01:31.4]} 13. Qe2 {[%clk 0:01:46]} 13... c5 {[%clk
0:01:12.1]} 14. e5 {[%clk 0:01:33.2]} 14... Nd5 {[%clk 0:00:36.6]} 15. Nxd5
{[%clk 0:01:27.2]} 15... Bxd5 {[%clk 0:00:37.5]} 16. Be4 {[%clk 0:01:26.1]}
16... Bxe4 {[%clk 0:00:32.8]} 17. Qxe4 {[%clk 0:01:26]} 17... O-O {[%clk
0:00:32.4]} 18. Rad1 {[%clk 0:01:23.9]} 18... Qc8 {[%clk 0:00:29.9]} 19. Rd3
{[%clk 0:01:03.8]} 19... Qe6 {[%clk 0:00:25.7]} 20. Rh3 {[%clk 0:01:01.6]} 20...
Qg6 {[%clk 0:00:19.7]} 21. Qf3 {[%clk 0:00:35.7]} 21... Qxc2 {[%clk 0:00:15.5]}
22. Be3 {[%clk 0:00:25.5]} 22... f6 {[%clk 0:00:09.9]} 23. e6 {[%clk 0:00:24]}
23... f5 {[%clk 0:00:08.6]} 24. Qh5 {[%clk 0:00:22.4]} 24... f4 {[%clk
0:00:07.1]} 25. Bc1 {[%clk 0:00:16.8]} 25... Qg6 {[%clk 0:00:04.9]} 26. Qxg6
{[%clk 0:00:14.3]} 26... hxg6 {[%clk 0:00:05.8]} 27. Rxf4 {[%clk 0:00:13.4]}
27... Rxf4 {[%clk 0:00:04]} 28. Bxf4 {[%clk 0:00:13.7]} 28... Rd8 {[%clk
0:00:04.5]} 29. g4 {[%clk 0:00:11.7]} 29... Rd1+ {[%clk 0:00:03.2]} 30. Kg2
{[%clk 0:00:12]} 30... Rb1 {[%clk 0:00:03.9]} 31. Rb3 {[%clk 0:00:10.9]} 31...
c4 {[%clk 0:00:04.1]} 32. Re3 {[%clk 0:00:09.1]} 32... Rxb2+ {[%clk 0:00:04.6]}
33. Kg3 {[%clk 0:00:09.5]} 33... Rxa2 {[%clk 0:00:04.2]} 34. h4 {[%clk
0:00:08.9]} 34... Ra3 {[%clk 0:00:04.6]} 35. Kf3 {[%clk 0:00:07.4]} 35... Rxe3+
{[%clk 0:00:04.1]} 36. Bxe3 {[%clk 0:00:08.2]} 36... Bxh4 {[%clk 0:00:03.7]} 37.
Bd2 {[%clk 0:00:06.6]} 37... Kf8 {[%clk 0:00:03.6]} 38. Ke4 {[%clk 0:00:06.7]}
38... Ke7 {[%clk 0:00:03.5]} 39. Kd5 {[%clk 0:00:07.2]} 39... Bf6 {[%clk
0:00:03.6]} 40. Bb4+ {[%clk 0:00:07.1]} 40... Ke8 {[%clk 0:00:04.1]} 41. Ba5
{[%clk 0:00:06.4]} 41... c3 {[%clk 0:00:04.3]} 42. Bb4 {[%clk 0:00:04]} 42... c2
{[%clk 0:00:04.5]} 43. Bd2 {[%clk 0:00:04.6]} 43... Bb2 {[%clk 0:00:05.1]} 44.
Kd6 {[%clk 0:00:04.2]} 44... c1=Q {[%clk 0:00:05.3]} 45. Bxc1 {[%clk 0:00:04.8]}
45... Bxc1 {[%clk 0:00:05.5]} 46. Kc5 {[%clk 0:00:05.7]} 46... Ba3+ {[%clk
0:00:05.5]} 47. Kd4 {[%clk 0:00:05.3]} 47... Ke7 {[%clk 0:00:05.4]} 48. Kc3
{[%clk 0:00:06.2]} 48... Bd6 {[%clk 0:00:05.5]} 49. Kb3 {[%clk 0:00:07.1]} 49...
Kxe6 {[%clk 0:00:06.4]} 50. Kc3 {[%clk 0:00:07.3]} 50... Kf6 {[%clk 0:00:07.3]}
51. g5+ {[%clk 0:00:08.2]} 51... Kxg5 {[%clk 0:00:08.2]} 52. Kb3 {[%clk
0:00:08.2]} 52... Kg4 {[%clk 0:00:09.1]} 53. Ka2 {[%clk 0:00:08]} 53... Kf5
{[%clk 0:00:10]} 54. Kb3 {[%clk 0:00:07.6]} 54... g5 {[%clk 0:00:10.9]} 55. Kc3
{[%clk 0:00:07.7]} 55... g4 {[%clk 0:00:11.8]} 0-1

[Event "Early-Titled-Tuesday-Blitz-April-23-2024"]
[Site "Chess.com"]
[Date "2024.04.23"]
[Round "2"]
[White "SmirnovTimofey2000"]
[Black "icy"]
[Result "0-1"]
[WhiteElo "1983"]
[BlackElo "2457"]
[TimeControl "180+1"]
[EndTime "8:18:50 PDT"]
[Termination "icy won by checkmate"]

1. d4 {[%clk 0:02:59.5]} 1... d6 {[%clk 0:02:57.8]} 2. Bf4 {[%clk 0:02:59.5]}
2... g6 {[%clk 0:02:51.8]} 3. Nc3 {[%clk 0:02:59.1]} 3... Bg7 {[%clk 0:02:51.9]}
4. e4 {[%clk 0:02:58.8]} 4... c5 {[%clk 0:02:50.3]} 5. dxc5 {[%clk 0:02:57.2]}
5... Qa5 {[%clk 0:02:50.5]} 6. Ne2 {[%clk 0:02:39.8]} 6... Qxc5 {[%clk
0:02:36.7]} 7. Qd2 {[%clk 0:02:31.5]} 7... Nf6 {[%clk 0:01:36.3]} 8. O-O-O
{[%clk 0:02:27.4]} 8... O-O {[%clk 0:01:31.3]} 9. Bh6 {[%clk 0:02:19.4]} 9...
Nc6 {[%clk 0:01:17.2]} 10. h4 {[%clk 0:02:17.6]} 10... Bxh6 {[%clk 0:01:01.7]}
11. Qxh6 {[%clk 0:02:16.6]} 11... Ng4 {[%clk 0:01:02.6]} 12. Qg5 {[%clk
0:02:00.3]} 12... Qxg5+ {[%clk 0:01:01.5]} 13. hxg5 {[%clk 0:02:00.6]} 13...
Nxf2 {[%clk 0:01:02.3]} 14. Rh4 {[%clk 0:01:49.9]} 14... Nxd1 {[%clk 0:01:02]}
15. Kxd1 {[%clk 0:01:50.8]} 15... f6 {[%clk 0:00:53.6]} 16. gxf6 {[%clk
0:01:44.2]} 16... Rxf6 {[%clk 0:00:54.5]} 17. Ke1 {[%clk 0:01:42.9]} 17... Be6
{[%clk 0:00:54.4]} 18. Nd5 {[%clk 0:01:37.3]} 18... Bxd5 {[%clk 0:00:53.2]} 19.
exd5 {[%clk 0:01:38.2]} 19... Raf8 {[%clk 0:00:52.6]} 20. Rh1 {[%clk 0:01:35.6]}
20... Ne5 {[%clk 0:00:49.1]} 21. Nd4 {[%clk 0:01:32.4]} 21... Ng4 {[%clk
0:00:42.6]} 22. Ne6 {[%clk 0:01:27.9]} 22... Ne3 {[%clk 0:00:41.9]} 23. Nxf8
{[%clk 0:01:26.4]} 23... Rxf8 {[%clk 0:00:33.8]} 24. Bd3 {[%clk 0:01:08.6]}
24... Nxg2+ {[%clk 0:00:30.3]} 25. Kd2 {[%clk 0:01:05.7]} 25... Nf4 {[%clk
0:00:30.4]} 26. Re1 {[%clk 0:00:59.4]} 26... Kf7 {[%clk 0:00:20.7]} 27. Be4
{[%clk 0:00:54.1]} 27... h5 {[%clk 0:00:17]} 28. Rf1 {[%clk 0:00:50.7]} 28... g5
{[%clk 0:00:17.1]} 29. Ke3 {[%clk 0:00:45.2]} 29... Kg7 {[%clk 0:00:15.1]} 30.
Rg1 {[%clk 0:00:41.8]} 30... Kf6 {[%clk 0:00:14.6]} 31. c4 {[%clk 0:00:38.5]}
31... Rh8 {[%clk 0:00:13.8]} 32. b4 {[%clk 0:00:32.3]} 32... h4 {[%clk
0:00:13.7]} 33. c5 {[%clk 0:00:30.8]} 33... h3 {[%clk 0:00:13.9]} 34. a4 {[%clk
0:00:25.2]} 34... Rc8 {[%clk 0:00:08.6]} 35. c6 {[%clk 0:00:17.2]} 35... bxc6
{[%clk 0:00:09.5]} 36. dxc6 {[%clk 0:00:17.7]} 36... d5 {[%clk 0:00:10.4]} 37.
Bf3 {[%clk 0:00:14.6]} 37... Rxc6 {[%clk 0:00:09.2]} 38. b5 {[%clk 0:00:13.9]}
38... Rc3+ {[%clk 0:00:09.1]} 39. Kf2 {[%clk 0:00:13.1]} 39... Nd3+ {[%clk
0:00:07]} 40. Kg3 {[%clk 0:00:12.1]} 40... Ne5 {[%clk 0:00:07.1]} 41. Rf1 {[%clk
0:00:11.8]} 41... Rxf3+ {[%clk 0:00:04.4]} 42. Rxf3+ {[%clk 0:00:11.8]} 42...
Nxf3 {[%clk 0:00:05.3]} 43. Kxf3 {[%clk 0:00:12.7]} 43... Ke6 {[%clk 0:00:06.2]}
44. a5 {[%clk 0:00:12.8]} 44... Kd7 {[%clk 0:00:06.8]} 45. b6 {[%clk 0:00:12.9]}
45... axb6 {[%clk 0:00:07.2]} 46. a6 {[%clk 0:00:12.9]} 46... Kc8 {[%clk
0:00:07.5]} 47. a7 {[%clk 0:00:13.1]} 47... Kb7 {[%clk 0:00:07.9]} 48. a8=Q+
{[%clk 0:00:13]} 48... Kxa8 {[%clk 0:00:08.8]} 49. Kg3 {[%clk 0:00:13.9]} 49...
g4 {[%clk 0:00:08.9]} 50. Kh2 {[%clk 0:00:14]} 50... d4 {[%clk 0:00:09.2]} 51.
Kg3 {[%clk 0:00:14.9]} 51... d3 {[%clk 0:00:10.1]} 52. Kxg4 {[%clk 0:00:14.4]}
52... h2 {[%clk 0:00:11]} 53. Kf4 {[%clk 0:00:14.6]} 53... h1=Q {[%clk
0:00:11.1]} 54. Kg4 {[%clk 0:00:15.5]} 54... Qd5 {[%clk 0:00:11.6]} 55. Kf4
{[%clk 0:00:16.2]} 55... d2 {[%clk 0:00:12.1]} 56. Kg4 {[%clk 0:00:17.1]} 56...
d1=Q+ {[%clk 0:00:12]} 57. Kf4 {[%clk 0:00:18]} 57... Q1f3# {[%clk 0:00:12.2]}
0-1